Workbook

Sheet PFS
H1: Ministério da Integração Nacional - MI
H2: Companhia de Desenvolvimento dos Vales do São Francisco e do Parnaíba
A5: PROPOSTA FINANCEIRA DE SERVIÇOS | N5: CODIGO:
N6: PFS
A7: NOME DA CONSULTORA:
A9: PERÍMETRO(S): | G9: OBJETO: | O9: EDITAL:
A11: SERVIÇOS PAGOS A PREÇO GLOBAL
A12: CUSTOS SERVIÇOS | N12: =SUM(N14+N15) -> 75643.2
A13: MÃO-DE-OBRA
A14: A - TOTAL DE CONSULTORIA | N14: ='PFS_I Equipe'!D17 -> 63036
A15: B - TOTAL DE ENCARGOS SOCIAIS | N15: ='PFS_I Equipe'!F17 -> 12607.2
A16: OUTRAS DESPESAS
A17: C - DESPESAS GERAIS (PFS-II) | N17: ='PFS_II Desp Gerais'!F17 -> 264934.76
A18: D - SERVIÇOS GRÁFICOS (PFS-III) | N18: ='PFS_III SERV GRAFICOS'!G17 -> 1672
A20: TOTAL DE OUTRAS DESPESAS | N20: =N17+N18+O19 -> 266606.76
A21: CUSTOS INDIRETOS | N21: =N22+N23+N25 -> 32708.11968
A22: E - CUSTO DE ADMINISTRAÇÃO SERVIÇOS- (10,00% DO ITEM A) (PFS-IV) | N22: =N12*10% -> 7564.32
A23: F - DESPESAS FISCAIS SERVIÇOS - (16,62% DO ITEM A) | N23: =N12*16.62% -> 12571.89984
A24: G - REMUNERAÇÃO DA EMPRESA - SERV (LUCRO) - (10,00% DOS ITENS A+E+F) | N24: =0.1*(N14+N15+N22+N23) -> 9577.941984
A25: H - BDI MATERIAIS (PFS-VI) | N25: =N12*16.62% -> 12571.89984
A26: TOTAL DA PROPOSTA | N26: =N12+N20+N21 -> 374958.0797
A27: NOME DO INFORMANTE: | J27: QUALIFICAÇÃO:
A29: ASSINATURA: | N29: DATA:
A31: OBSERVAÇÃO:

Sheet PFS_I Equipe
A5: SALÁRIOS E ENCARGOS DA EQUIPE | G5: CODIGO:
G6: PFS-I
A7: NOME DA CONSULTORA:
A9: PERÍMETRO(S): | G9: EDITAL:
A11: CATEGORIA FUNCIONAL | B11: TOTAL DE | C11: TOTAL CUSTO | D11: TOTAL CUSTO | E11: TOTAL CUSTO | F11: TOTAL CUSTO | G11: TAXA DE
B12: HORAS | C12: SALÁRIO- HORA (R$) | D12: SALÁRIO- HORA (R$) | E12: E. SOCIAIS DE | F12: E. SOCIAIS DE | G12: E. SOCIAIS
C13: A | D13: A | E13: B | F13: B | G13: %
A14: Consultoria | B14: 515 | C14: 122.4 | D14: =B14*C14 -> 63036 | E14: =C14*G14 -> 24.48 | F14: =D14*G14 -> 12607.2 | G14: 0.2
K15: =240/8 -> 30
A16: Materiais de consumo*
A17: TOTAIS | C17: =SUM(C14:C16) -> 122.4 | D17: =SUM(D14:D16) -> 63036 | E17: =SUM(E14:E16) -> 24.48 | F17: =SUM(F14:F16) -> 12607.2
A18: NOME DO INFORMANTE: | E18: QUALIFICAÇÃO:
A20: ASSINATURA: | F20: DATA:
A22: LEGENDA:
A23: B1 - SALÁRIOS DA EQUIPE EM DIAS ÚTEIS
A24: B2- SALÁRIO DO PESSOAL AUTÔNOMO (CONSULTORES)
A25: OBSERVAÇÃO:
A26: DETALHAR OS ENCARGOS SOCIAIS NO FOR PFS-VIII

Sheet PFS_II Desp Gerais
C1: Ministério da Integração Nacional - MI
C2: Companhia de Desenvolvimento dos Vales do São Francisco e do Parnaíba
A4: DESPESAS GERAIS | F4: CODIGO:
F5: PFS-II
A6: NOME DA LICITANTE:
C8: OBJETO: | F8: EDITAL:
A11: Item | B11: Descrição dos Serviços e Materiais | C11: Unid. | D11: Quant. | E11: Preço unitário | F11: Total
A12: 1 | B12: 02 Horta com sistemas de irrigação com dimensionamento para uma área de 10.000 m2 | C12: unid | D12: 2 | E12: =[2]Plan2!$N$27 -> 15116.56667 | F12: =E12*D12 -> 30233.13333
A13: 2 | B13: 25 Sistema de manejo de irrigação via solo de baixo custo. | C13: unid | D13: 50 | E13: =[3]Plan3!$P$9 -> 37.52166667 | F13: =E13*D13 -> 1876.083333
A14: 3 | B14: 05 Unidades de Observação e Demonstração - UOD em áreas de 2,0 ha, sendo 1,2 de palma e 0,8 de sorgo. | C14: unid | D14: 5 | E14: =[3]Plan1!$P$53 -> 37051.07667 | F14: =E14*D14 -> 185255.3833
A15: 4 | B15: Material necessario | C15: unid | D15: 3 | E15: 8957 | F15: =E15*D15 -> 26871
A16: 5 | B16: Veiculo Hatc 1.0 Flex (72CV) | C16: unid | D16: 12 | E16: 1724.93 | F16: =E16*D16 -> 20699.16
A17: TOTAL GERAL | F17: =SUM(F12:F16) -> 264934.76
A18: NOME DO INFORMANTE: | D18: QUALIFICAÇÃO:
A20: ASSINATURA: | E20: DATA:

Sheet PFS_III SERV GRAFICOS
C1: Ministério da Integração Nacional - MI
C2: Companhia de Desenvolvimento dos Vales do São Francisco e do Parnaíba
A4: SERVIÇOS GRÁFICOS | G4: CODIGO:
G5: PFS-IV
A6: NOME DA CONSULTORA: | C6: FOLHA:
A8: PERÍMETRO(S): | C8: OBJETO: | G8: EDITAL:
G9: 22/2013
A10: DISCRIMINAÇÃO | D10: EXEMPLARES | E10: Nº DE VIAS | F10: CUSTO (R$)
F11: UNITÁRIO | G11: TOTAL
A12: Relatório de acompanhamento mensal | D12: 12 | E12: 2 | F12: 30 | G12: =D12*E12*F12 -> 720
A13: Impressão de material técnico informativo | D13: 250 | E13: 2 | F13: 1.6 | G13: =D13*E13*F13 -> 800
E14: =D14*2 -> 0 | F14: =E14*$D$17 -> 0 | G14: =D14*E14*F14 -> 0
A15: SUBTOTAL | G15: =SUM(G12:G14) -> 1520
A16: RESERVA DE 10% | G16: =G15*10% -> 152
A17: TOTAL DE SERVIÇOS GRÁFICOS | G17: =G15+G16 -> 1672
A19: NOME DO INFORMANTE: | D19: QUALIFICAÇÃO:
A20: AMANICO DA CRUZ NETO | E20: ENGº AGRÔNOMO
A21: ASSINTATURA: | F21: DATA:
A23: OBSERVAÇÃO:
A24: 1 - CORREPONDEM AOS SERVIÇOS COM IMPRESSÃO DOS RELATÓRIOS, OUTROS DOCUMENTOS E MATERIAIS INFORMATIVOS.
A25: 2 - RESERVA DE 10% CALCULADO SOBRE O SUBTOTAL. DESTINA-SE PARA IMPRESSÃO DE RELATÓRIOS ESPECÍFICOS, EXCEPCIONALMENTE SOLICITADOS PELA
A26: CODEVASF

Sheet PFS_IV administração - SERV
C1: Ministério da Integração Nacional - MI
C2: Companhia de Desenvolvimento dos Vales do São Francisco e do Parnaíba
A4: DETALHAMENTO DO CUSTO DE ADMINISTRAÇÃO - SERVIÇOS | G4: CODIGO:
G5: PFS-IV
A6: NOME DA CONSULTORA: | C6: FOLHA:
A8: PERÍMETRO(S): | C8: OBJETO: | G8: EDITAL:
A10: DISCRIMINAÇÃO | F10: VALORES
F11: % | G11: R$
A12: 1 | B12: Custos da equipe da administração central da empresa consultora ( diretoria, pessoal técnico de apoio e pessoal administrativo não diretamente vinculado à prestação dos serviços) | F12: 0.05 | G12: =PFS!N12*5% -> 3782.16
A13: 2 | B13: Outras despesas que afetam o custo de produção como treinamento, biblioteca, programa de qualidade, auditoria interna e externa | F13: 0.03 | G13: =PFS!N12*3% -> 2269.296
A14: 3 | B14: Despesas com aluguéis, comunicação, manutenção e transporte não diretamente relacionados com o custo direto dos serviços | F14: 0.02 | G14: =PFS!N12*2% -> 1512.864
B39: TOTAIS DO CUSTO DE ADMINISTRAÇÃO | F39: =SUM(F12:F38) -> 0.1 | G39: =SUM(G12:G38) -> 7564.32
A41: NOME DO INFORMANTE: | D41: QUALIFICAÇÃO:
A42: ASSINATURA: | F42: DATA:
A43: OBSERVAÇAO:

Sheet PFS_V Desp. Fiscais Serv.
C1: Ministério da Integração Nacional - MI
C2: Companhia de Desenvolvimento dos Vales do São Francisco e do Parnaíba
A4: DETALHAMENTO DE DESPESAS FISCAIS -SERVIÇOS | H4: CODIGO:
H5: PFS-VII
A6: NOME DA CONSULTORA:
A8: PERÍMETRO(S): | C8: OBJETO: | H8: EDITAL:
A10: DISCRIMINAÇÃO | F10: VALORES
F11: DF % | G11: DF' % | H11: R$
A13: 1 - ISS | F13: 5 | G13: =(1/(1-$F$40/100))*F13 -> 5.83090379 | H13: =PFS!N12*5.83% -> 4409.99856
A14: 2 - PIS | F14: 1.65 | G14: =(1/(1-$F$40/100))*F14 -> 1.924198251 | H14: =PFS!N12*1.92% -> 1452.34944
A15: 3 - COFINS | F15: 7.6 | G15: =(1/(1-$F$40/100))*F15 -> 8.862973761 | H15: =PFS!N12*8.86% -> 6701.98752
A40: TOTAIS DE DESPESAS FISCAIS | F40: =F13+F14+F15 -> 14.25 | G40: =G13+G14+G15 -> 16.6180758 | H40: =PFS!N25 -> 12571.89984
A41: NOME DO INFORMANTE: | D41: QUALIFICAÇÃO:
A43: ASSINATURA: | F43: DATA:
A45: Observação:
A46: As despesas fiscais (DF) incidem sobre o total da fatura e não sobre os custos incorridos. Portanto aplicar a seguinte fórmula:
A47: DF' = { [ 1 / ( 1 - DF ) ] - 1 } x 100
A48: ou seja, para o valor máximo de 14,25%, o valor a ser aplicado na composição dos preços será:
A49: DF' = { [ 1 / ( 1 - 0,1425 ) ] - 1 } x 100
A50: DF' =0,1662 ou 16,62%

Sheet PFS_VI_ Det_ BDI MATERIAIS_
C1: Ministério da Integração Nacional - MI
C2: Companhia de Desenvolvimento dos Vales do São Francisco e do Parnaíba
A4: DETALHAMENTO DO BDI - MATERIAIS | I4: CODIGO:
I5: PFS-VI
A6: NOME DA CONSULTORA:
A8: PERÍMETRO(S): | C8: OBJETO: | I8: EDITAL:
A10: DESCRIÇÃO DOS SERVIÇOS | F10: % | G10: % | H10: VALOR
F11: CD | G11: PV | H11: (R$) | I11: R$
A12: 1 | B12: ADMINISTRAÇÃO CENTRAL | F12: 1.5 | I12: =PFS!N20*1.5% -> 3999.1014
A14: 2 | B14: IMPOSTOS E TAXAS | F14: 5.65 | G14: 5.65 | I14: =PFS!N20*5.65% -> 15063.28194
A15: 2.1 | B15: ISS | F15: 0 | G15: 0
A16: 2.2 | B16: PIS | F16: 0.65 | G16: 0.65
A17: 2.3 | B17: CPRB | F17: 2,00 | G17: 2,00
A18: 2.4 | B18: Cofins | F18: 3 | G18: 3
A20: 3 | B20: TAXA DE RISCO | F20: 1.22 | I20: =PFS!N20*1.22% -> 3252.602472
A21: 3.1 | B21: Seguros | F21: 0.2
A22: 3.2 | B22: Riscos | F22: 0.82
A23: 3.3 | B23: Garantias | F23: 0.2
A25: 4 | B25: DESPESAS FINANCEIRAS | F25: 0.85 | I25: =PFS!N20*0.85% -> 2266.15746
A27: 5 | B27: LUCRO | F27: 3.85 | I27: =PFS!N20*3.85% -> 10264.36026
A29: BDI CALCULADO | I29: =SUM(I12:I28) -> 34845.50353
B31: BDI= | E31: 14,02 calculado
B32: BDI= | E32: 14,02 adotado
C34: a= | F34: 0.015 | H34: Adminstração Central
C35: i= | F35: 0.0565 | H35: Impostos
C36: r= | F36: 0.0122 | H36: Taxa de Risco
C37: f= | F37: 0.0085 | H37: Despesas financeiras
C38: l= | F38: 0.0385 | H38: Lucro
A40: BDI = ((1+AC+S+R+G) (1+DF) (1+L)/(1-I))-1
A43: NOME DO INFORMANTE: | D43: QUALIFICAÇÃO:
A44: ASSINATURA: | H44: DATA:
A45: OBSERVAÇAO:

Sheet PFS_VII Cronog Financ
C1: Ministério da Integração Nacional - MI
C2: Companhia de Desenvolvimento dos Vales do São Francisco e do Parnaíba
A4: CRONOGRAMA FINANCEIRO | H4: CODIGO:
H5: PFS-V
A6: NOME DA CONSULTORA:
A8: PERÍMETRO(S): | C8: OBJETO: | H8: EDITAL:
A10: Nº | B10: TAREFA | C10: RELATÓRIO/SERVIÇO DE CAMPO | F10: MESES CORRIDOS | G10: VALOR DA PARCELA (R$)
A11: 1 | B11: Assessoria | C11: Relatório mensal 01 | F11: 1 | G11: =[1]PFS!#REF!*(1+0.1)*(1+0.1662) -> 
A12: 2 | B12: Assessoria | C12: Relatório mensal 02 | F12: 2 | G12: =([1]PFS!#REF!-[1]PFS!#REF!*(1+0.1)*(1+0.1662))*8/100 -> 
A13: 3 | B13: Assessoria | C13: Relatório mensal 03 | F13: 3 | G13: =([1]PFS!#REF!-[1]PFS!#REF!*(1+0.1)*(1+0.1662))*5/100 -> 
A14: 4 | B14: Assessoria | C14: Relatório mensal 04 | F14: 4
A15: 5 | B15: Assessoria | C15: Relatório mensal 05 | F15: 5
A16: 6 | B16: Assessoria | C16: Relatório mensal 06 | F16: 6
B17: Assessoria | C17: Relatório mensal 07 | F17: 7
B18: Assessoria | C18: Relatório mensal 08 | F18: 8
B19: Assessoria | C19: Relatório mensal 09 | F19: 9
B20: Assessoria | C20: Relatório mensal 10 | F20: 10
B21: Assessoria | C21: Relatório mensal 11 | F21: 11
B22: Assessoria | C22: Relatório mensal 12 | F22: 12
A47: TOTAL DA FOLHA | G47: =SUM(G11:G46) ->  | H47: =SUM(H11:H46) -> 0
A48: NOME DO INFORMANTE: | D48: QUALIFICAÇÃO:
A50: ASSINATURA: | F50: DATA:
A52: OBSERVAÇÃO:
